bitfinex/quotes_ETHUSD_20240731
["timestamp","ask_amount","ask_price","bid_price","bid_amount"]
[1722428617642,2.21044754,3326.4,3325.9,2.41555759]
[1722428617841,5.21044754,3326.4,3325.9,2.77214541]
[1722428618093,2.21044754,3326.4,3325.9,2.77214541]
[1722428618281,3.0,3326.5,3325.9,2.77214541]
[1722428618282,5.21044754,3326.5,3325.9,2.77214541]
[1722428618438,8.21660754,3326.5,3325.9,2.77214541]
[1722428618641,8.21660754,3326.5,3325.9,2.41555759]
[1722428618878,8.21660754,3326.5,3326.0,35.0]
[1722428619244,8.21621234,3326.5,3326.0,35.0]
[1722428619442,8.21621234,3326.5,3326.1,0.06475759]
[1722428620661,4.11528,3326.4,3326.1,0.06475759]
[1722428620858,7.12186,3326.2,3326.1,0.06475759]
[1722428621077,10.12186,3326.2,3326.1,0.06475759]
[1722428621597,3.00669,3326.0,3325.7,0.4]
[1722428621803,4.11579,3325.8,3325.7,0.4]
[1722428622000,7.75518173,3325.8,3325.7,0.4]
[1722428622175,10.02698173,3325.8,3325.7,0.4]
[1722428622606,12.63803349,3325.8,3325.7,0.4]
[1722428623326,10.02698173,3325.8,3325.7,0.4]
[1722428624184,13.03377173,3325.8,3325.7,0.4]
[1722428625268,13.03377173,3325.8,3324.7,35.0]
[1722428625269,3.00727,3325.3,3324.7,35.0]
[1722428625633,3.00727,3325.3,3324.8,3.04901288]
[1722428625971,3.00727,3325.3,3324.6,2.3883]
[1722428626180,3.00727,3325.3,3324.7,35.0]
[1722428626713,3.00727,3325.3,3324.8,0.06245237]
[1722428627406,3.00708,3325.5,3324.9,35.0]
[1722428627607,3.00708,3325.5,3324.9,35.06245237]
[1722428627863,6.01421,3325.5,3324.9,35.06245237]
[1722428627971,3.00708,3325.5,3324.9,35.06245237]
[1722428628182,6.01422,3325.5,3324.9,35.06245237]
[1722428628401,3.00733,3325.2,3324.9,35.06245237]
[1722428628600,3.00733,3325.2,3324.9,0.06245237]
[1722428628802,3.00733,3325.2,3324.3,5.4767]
[1722428629111,3.00758,3325.0,3324.4,35.0]
[1722428629696,6.0148,3325.2,3324.4,38.00805]
[1722428629868,3.00745,3325.1,3324.5,3.04901288]
[1722428630084,3.007,3325.6,3324.5,3.04901288]
[1722428630085,3.00758,3325.0,3324.5,3.04901288]
[1722428630410,3.00758,3325.0,3324.3,2.4686]
[1722428630623,3.00758,3325.0,3324.6,35.0]
[1722428631299,3.00774,3324.8,3324.6,35.0]
[1722428633016,3.00758,3325.0,3324.6,38.04901288]
[1722428633322,3.00735,3325.2,3324.6,38.04901288]
[1722428633477,10.41699,3325.6,3324.6,38.04901288]
[1722428633478,3.00743,3325.1,3324.6,3.04901288]
[1722428633681,3.00743,3325.1,3324.4,3.00805]
[1722428634075,3.00752,3325.0,3324.5,35.0]
[1722428634390,3.00761,3324.9,3324.5,34.0]
[1722428634589,3.00743,3325.1,3324.5,34.0]
[1722428635842,6.01493,3325.1,3324.5,34.0]
[1722428636034,3.00743,3325.1,3324.5,37.04901288]
[1722428636440,3.00765,3324.9,3324.5,37.04901288]
[1722428636643,3.00765,3324.9,3324.5,34.0]
[1722428639632,3.00743,3325.1,3324.5,34.0]
[1722428639953,3.00743,3325.1,3324.5,37.00793]
[1722428640959,5.21440867,3325.5,3324.5,37.0079]
[1722428641260,3.00734,3325.2,3324.5,37.0079]
[1722428641592,3.00734,3325.2,3324.5,34.0]
[1722428641743,3.00748,3325.1,3324.6,0.06287323]
[1722428644857,3.00748,3325.1,3324.4,3.00805]
[1722428645055,3.00748,3325.1,3324.7,0.06324821]
[1722428645374,3.00748,3325.1,3324.8,35.0]
[1722428645673,3.00748,3325.1,3324.8,35.06324821]
[1722428646197,3.00748,3325.1,3324.8,0.06324821]
[1722428646494,3.00748,3325.1,3324.4,3.00805]
[1722428646693,3.00748,3325.1,3324.9,0.06324821]
[1722428647004,3.00748,3325.1,3325.0,0.06324821]
[1722428647147,3.00748,3325.1,3324.5,35.0]
[1722428647551,3.00748,3325.1,3324.6,0.06324821]
[1722428647788,3.00751,3325.0,3324.6,0.06324821]
[1722428647998,3.00607875,3325.0,3324.4,3.00805]
[1722428648165,3.00607875,3325.0,3324.5,35.0]
[1722428648792,3.00607875,3325.0,3324.6,0.06325971]
[1722428649202,6.01476,3325.2,3324.6,0.06325971]
[1722428649494,3.00745,3325.1,3324.7,35.06325971]
[1722428650650,3.00734,3325.2,3324.7,35.06325971]
[1722428650846,3.00734,3325.2,3324.7,37.50938541]
[1722428651084,3.00734,3325.2,3324.8,2.4763]
[1722428651685,3.00734,3325.2,3324.9,0.06325971]
[1722428653175,3.00747,3325.1,3324.9,0.06325971]
[1722428653556,3.00747,3325.1,3324.7,35.0]
[1722428653756,3.00747,3325.1,3324.8,0.06325971]
[1722428654072,3.00752,3325.0,3324.8,0.06325971]
[1722428654456,3.0076,3324.9,3324.8,0.06325971]
[1722428654661,3.720112,3324.9,3324.1,2.3967]
[1722428654901,3.00771,3324.8,3324.3,35.0]
[1722428655213,2.4923,3325.2,3324.3,35.0]
[1722428655214,4.11803,3324.5,3324.3,35.0]
[1722428655410,4.11803,3324.5,3323.2,3.00906]
[1722428655411,3.00806,3324.4,3323.8,2.3967]
[1722428655722,4.1182,3324.3,3323.5,5.40552]
[1722428656015,3.00842,3324.0,3323.5,2.3967]
[1722428656610,3.00842,3324.0,3323.6,35.0]
[1722428656783,3.00842,3324.0,3323.6,35.06125834]
[1722428656995,1.11,3323.9,3323.6,35.06125834]
[1722428657300,3.00869,3323.7,3323.6,35.06125834]
[1722428657595,1.11,3323.9,3323.6,35.06125834]
[1722428657805,3.00866,3323.8,3323.6,35.06125834]
[1722428658298,4.11869,3323.7,3323.6,35.06125834]
[1722428658511,4.11869,3323.7,3323.6,0.06125834]
[1722428658717,4.831425,3323.7,3323.6,0.06125834]
[1722428658921,4.831425,3323.7,3323.2,35.0]
[1722428658922,3.00885,3323.6,3323.2,35.0]
[1722428659132,3.00888,3323.5,3323.2,35.0]
[1722428660728,7.12746,3323.7,3323.2,35.0]
[1722428660909,3.00879,3323.6,3323.2,35.0]
[1722428662276,3.00879,3323.6,3323.0,2.4256]
[1722428662710,3.00879,3323.6,3323.1,35.0]
[1722428662922,6.01765,3323.6,3323.1,35.0]
[1722428663075,3.00879,3323.6,3323.1,35.0]
[1722428665402,6.01766,3323.6,3323.1,35.0]
[1722428665727,3.00879,3323.6,3323.1,35.0]
[1722428666374,6.01765,3323.6,3323.1,35.0]
[1722428666578,3.00892,3323.5,3323.1,35.0]
[1722428668381,4.11892,3323.5,3323.1,35.0]
[1722428671584,4.11892,3323.5,3323.2,0.06204709]
[1722428672434,4.11905,3323.3,3323.2,0.06204709]
[1722428673033,7.1281,3323.3,3323.2,0.06204709]
[1722428673229,10.1281,3323.3,3323.2,0.06204709]
[1722428673583,13.13715,3323.3,3323.2,0.06204709]
[1722428673850,13.13715,3323.3,3321.9,2.4294]
[1722428673851,3.00961,3322.7,3321.9,2.4294]
[1722428674145,3.00961,3322.7,3322.4,35.0]
[1722428674341,3.00969,3322.6,3322.4,35.0]
[1722428674488,3.00961,3322.7,3322.4,35.0]
[1722428674489,3.00978,3322.5,3322.4,35.0]
[1722428674721,3.00961,3322.7,3322.4,35.0]
[1722428674921,3.00947,3322.9,3322.4,35.0]
[1722428675446,6.01896,3322.9,3322.4,35.0]
[1722428675729,3.00947,3322.9,3322.4,35.0]
[1722428676035,3.00951,3322.8,3322.4,35.0]
[1722428676834,3.0096,3322.7,3322.4,35.0]
[1722428677131,6.01927,3322.7,3322.4,35.0]
[1722428677300,3.0096,3322.7,3322.4,35.0]
[1722428677903,3.00972,3322.6,3322.4,35.0]
[1722428678108,3.00978,3322.5,3322.4,35.0]
[1722428678303,3.00978,3322.5,3321.8,3.01041]
[1722428678590,3.00978,3322.5,3321.8,3.612435]
[1722428678832,3.00978,3322.5,3322.0,35.0]
[1722428679997,3.01014,3322.1,3321.2,5.38968]
[1722428680313,1.11,3321.6,3321.2,2.3788]
[1722428680645,4.1203,3322.0,3321.3,3.01085]
[1722428680882,1.11,3322.0,3321.4,3.01076]
[1722428681211,3.01015,3322.1,3321.4,3.01076]
[1722428681738,3.01015,3322.1,3321.2,5.38975]
[1722428681947,3.01037,3321.9,3321.2,5.38975]
[1722428682140,6.02077,3321.9,3321.2,5.38975]
[1722428682638,3.01047,3321.8,3321.2,2.3788]
[1722428682815,3.01047,3321.8,3321.0,3.01106]
[1722428682994,3.01047,3321.8,3321.0,6.06007288]
[1722428683193,3.01051,3321.7,3321.0,6.06007288]
[1722428683417,3.01061,3321.6,3321.0,3.04901288]
[1722428684196,3.01069,3321.5,3320.9,35.0]
[1722428684406,3.01111,3321.1,3320.9,35.0]
[1722428684597,3.01111,3321.1,3320.3,2.4644]
[1722428685349,3.0109,3321.3,3320.6,3.01144]
[1722428685911,3.01096,3321.2,3320.6,3.01144]
[1722428686143,3.01096,3321.2,3320.7,35.0]
[1722428686144,2.4416,3321.1,3320.7,35.0]
[1722428686341,3.01132,3320.8,3320.7,35.0]
[1722428686703,3.01132,3320.8,3320.7,35.05844038]
[1722428686901,5.45266,3321.1,3320.7,35.05844038]
[1722428687101,3.01131,3320.9,3320.7,35.05844038]
[1722428688817,3.01132,3320.8,3320.7,35.05844038]
[1722428690206,3.01114,3321.0,3320.7,35.05844038]
[1722428690553,2.668,3321.5,3320.7,35.05844038]
[1722428690554,3.01089,3321.3,3320.7,35.05844038]
[1722428691004,6.02183,3321.3,3320.7,35.05844038]
[1722428691204,3.01089,3321.3,3320.7,35.05844038]
[1722428692028,5.27073,3321.5,3320.8,3.01129]
[1722428692233,5.27073,3321.5,3320.9,0.06032674]
[1722428692437,3.01082,3321.4,3320.9,0.06032674]
[1722428692753,5.27073,3321.5,3320.9,0.06032674]
[1722428692916,3.01088,3321.3,3320.9,0.06032674]
[1722428693110,5.27073,3321.5,3320.8,3.01131]
[1722428693321,5.27073,3321.5,3321.0,0.06032674]
[1722428693564,3.01079,3321.4,3320.8,3.01131]
[1722428693852,10.41,3321.6,3320.9,3.01122]
[1722428694010,3.0,3321.6,3321.0,0.06032674]
[1722428694425,6.0106,3321.6,3321.0,0.06032674]
[1722428694925,3.01082,3321.4,3321.0,0.06032674]
[1722428695140,3.01096,3321.2,3321.0,0.06032674]
[1722428695317,3.01096,3321.2,3320.7,35.0]
[1722428695519,3.01096,3321.2,3321.1,0.06028454]
[1722428695730,3.01096,3321.2,3320.7,35.0]
[1722428695731,3.01119,3321.0,3320.7,35.0]
[1722428695925,8.4995,3321.2,3321.1,0.06028454]
[1722428696115,3.01132,3320.8,3320.7,35.0]
[1722428696533,3.01132,3320.8,3320.7,35.06028454]
[1722428697462,3.01121,3321.0,3320.7,35.06028454]
[1722428698329,3.611942,3321.4,3320.7,38.07169454]
[1722428698552,6.01086,3321.4,3320.7,38.07169454]
[1722428698716,3.01087,3321.3,3320.7,35.06028454]
[1722428698917,3.01105,3321.1,3320.7,35.06028454]
[1722428699363,4.896072,3321.3,3320.7,38.07168454]
[1722428699531,3.0,3321.2,3320.7,35.06028454]
[1722428699733,6.01096,3321.2,3320.7,35.06028454]
[1722428700255,3.0,3321.2,3320.7,35.06028454]
[1722428700619,3.01087,3321.3,3320.7,35.06028454]
[1722428700833,3.0,3321.2,3320.7,35.06028454]
[1722428701034,6.01082,3321.4,3320.7,38.07169454]
[1722428701249,3.01096,3321.2,3320.7,35.06028454]
[1722428701460,3.0,3321.1,3320.7,35.06028454]
[1722428701719,6.02091,3321.8,3321.0,5.37726]
[1722428701942,3.01051,3321.7,3321.0,5.37726]
[1722428702138,3.01051,3321.7,3321.1,0.06019001]
[1722428702362,1.574591,3321.8,3321.1,0.06019001]
[1722428702571,7.41,3322.0,3321.2,3.01095]
[1722428702747,3.01033,3321.9,3321.2,3.01095]
[1722428702941,3.01033,3321.9,3321.3,3.01085]
[1722428703159,0.2268,3322.3,3321.3,0.06019001]
[1722428703361,0.2268,3322.3,3321.7,3.01049]
[1722428703591,0.2268,3322.3,3321.5,3.01067]
[1722428703592,0.323668,3322.2,3321.5,3.01062]
[1722428703802,3.00997,3322.3,3321.8,0.06019001]
[1722428703962,3.00997,3322.3,3321.6,38.01059]
[1722428704199,3.00997,3322.3,3321.9,0.06019001]
[1722428704379,0.300997,3322.2,3321.6,38.01059]
[1722428704588,3.300997,3322.2,3322.0,0.06019001]
[1722428704752,3.01019,3322.1,3321.6,35.0]
[1722428704947,3.300997,3322.2,3321.6,35.0]
[1722428704948,3.01046,3321.8,3321.6,35.0]
[1722428705152,3.01046,3321.8,3321.1,3.01103]
[1722428705397,3.01052,3321.7,3321.1,3.01103]
[1722428705600,3.01052,3321.7,3321.2,35.0]
[1722428705753,3.01066,3321.6,3321.2,35.0]
[1722428705968,3.01052,3321.7,3321.2,35.0]
[1722428706170,3.01035,3321.9,3321.2,38.01094]
[1722428706367,1.65237287,3321.9,3321.2,35.0]
[1722428706699,0.6311187,3322.0,3321.4,3.0107]
[1722428706700,3.6413787,3322.0,3321.4,3.0107]
[1722428706999,3.6413787,3322.0,3321.2,38.01094]
[1722428707000,3.6413887,3322.0,3321.2,35.0]
[1722428707216,3.01052,3321.7,3321.2,35.0]
[1722428707693,3.01054,3321.7,3321.2,35.0]
[1722428707902,3.01054,3321.7,3321.0,3.01112]
[1722428708202,0.831399,3321.7,3321.1,3.01099]
[1722428708493,3.0,3321.7,3321.2,3.01089]
[1722428708648,3.0,3321.7,3321.1,35.0]
[1722428708848,6.02095,3321.8,3321.1,35.0]
[1722428709092,3.0,3321.7,3321.1,35.0]
[1722428709326,6.01058,3321.7,3321.1,35.0]
[1722428709462,3.0106,3321.6,3321.1,35.0]
[1722428709885,3.902104,3321.7,3321.1,35.0]
[1722428710082,3.0,3321.7,3321.1,38.01104]
[1722428711035,3.01061,3321.6,3321.1,35.0]
[1722428711441,3.0,3321.7,3321.1,35.0]
[1722428713410,6.01051,3321.7,3321.1,35.0]
[1722428715192,3.01059,3321.6,3321.1,35.0]
[1722428716812,3.01059,3321.6,3321.2,0.05977187]
[1722428717188,3.9127,3321.6,3321.2,0.05977187]
[1722428717423,3.9127,3321.6,3321.3,0.05977187]
[1722428717768,3.9127,3321.6,3321.2,35.0]
[1722428717952,3.9127,3321.6,3321.3,0.05977187]
[1722428718224,3.01069,3321.5,3321.2,35.0]
[1722428718461,3.01082,3321.4,3321.3,0.05977187]
[1722428718665,3.01069,3321.5,3321.2,35.0]
[1722428718878,3.01069,3321.5,3321.3,0.05977187]
[1722428719047,3.01069,3321.5,3321.2,35.0]
[1722428719233,3.01069,3321.5,3321.3,0.05977187]
[1722428719433,6.01053,3321.7,3321.2,35.0]
[1722428719739,6.01053,3321.7,3321.3,0.05977187]
[1722428720067,6.01053,3321.7,3321.2,35.0]
[1722428720369,3.01059,3321.6,3321.3,0.05977187]
[1722428720554,3.0107,3321.5,3321.3,0.05977187]
[1722428720932,3.01062,3321.6,3321.4,0.05977187]
[1722428721231,3.01068,3321.5,3320.8,3.01125]
[1722428721433,3.611682,3321.6,3320.9,0.05977187]
[1722428721434,3.01088,3321.3,3320.9,0.05977187]
[1722428721674,3.01102,3321.2,3320.7,2.4888]
[1722428721874,6.02205,3321.2,3320.8,35.05977954]
[1722428722176,3.01102,3321.2,3320.8,35.05977954]
[1722428722585,3.01109,3321.1,3320.8,35.05977954]
[1722428722733,3.01114,3321.0,3320.8,35.05977954]
[1722428723077,3.01123,3320.9,3320.8,0.05977954]
[1722428723230,3.01123,3320.9,3320.4,2.3817]
[1722428723431,3.01106,3321.1,3320.5,35.05977954]
[1722428723643,6.02218,3321.1,3320.5,35.05977954]
[1722428723871,3.01114,3321.0,3320.5,35.05977954]
[1722428724277,3.0113,3320.9,3320.5,35.05977954]
[1722428725070,3.01107,3321.1,3320.5,35.05977954]
[1722428725293,3.01119,3321.0,3320.5,35.05977954]
[1722428726082,3.01126,3320.9,3320.5,35.05977954]
[1722428726573,3.01142,3320.7,3320.5,35.05977954]
[1722428726985,3.613493,3320.9,3320.5,35.05977954]
[1722428727151,3.01108,3321.1,3320.5,35.05977954]
[1722428727334,3.01125,3320.9,3320.5,35.05977954]
[1722428728078,3.01132,3320.8,3320.5,35.05977954]
[1722428728429,3.01143,3320.7,3320.5,35.05977954]
[1722428729036,3.0113,3320.9,3320.5,35.05977954]
[1722428729679,3.01132,3320.8,3320.5,35.05977954]
[1722428729851,6.02272,3320.8,3320.5,35.05977954]
[1722428730277,3.01141,3320.7,3320.5,35.05977954]
[1722428731534,3.0115,3320.6,3320.5,35.05977954]
[1722428731652,3.01132,3320.8,3320.5,35.05977954]
[1722428731847,4.68910156,3321.3,3320.5,35.05977954]
[1722428731848,3.01108,3321.1,3320.5,35.05977954]
[1722428732048,3.0115,3320.6,3320.5,35.05977954]
[1722428732304,6.02276,3320.8,3320.5,35.05977954]
[1722428732482,3.01136,3320.8,3320.5,35.05977954]
[1722428733190,3.0115,3320.6,3320.5,35.05977954]
[1722428733346,5.21878336,3321.2,3320.5,35.05977954]
[1722428733347,3.01142,3320.7,3320.5,35.05977954]
[1722428733551,3.01099,3321.2,3320.5,35.05977954]
[1722428733552,3.0112,3321.0,3320.5,35.05977954]
[1722428733954,3.01136,3320.8,3320.5,35.05977954]
[1722428734187,3.01141,3320.7,3320.5,35.05977954]
[1722428735592,3.011,3321.2,3320.7,0.2]
[1722428735748,6.0111,3321.1,3320.7,0.2]
[1722428735953,3.01119,3321.0,3320.8,0.06020152]
[1722428737410,3.0,3321.1,3320.8,0.06020152]
[1722428737785,6.01107,3321.1,3320.8,0.06020152]
[1722428738321,3.0,3321.1,3320.8,0.06020152]
[1722428738606,3.01107,3321.1,3320.8,0.06020152]
[1722428738821,3.01104,3321.2,3320.8,0.06020152]
[1722428740026,3.01122,3321.0,3320.8,0.06020152]
[1722428740225,3.01123,3320.9,3320.8,0.06020152]
[1722428740909,3.01122,3321.0,3320.8,0.06020152]
[1722428741214,3.01123,3320.9,3320.8,0.06020152]
[1722428741421,3.01112,3321.1,3320.8,0.06020152]
[1722428741707,3.01093,3321.3,3320.8,0.06020152]
[1722428741911,3.0,3321.2,3320.8,0.06020152]
[1722428742302,10.42063,3321.6,3320.9,2.3451]
[1722428742469,3.01074,3321.5,3321.0,0.06023221]
[1722428742668,10.42063,3321.6,3321.0,0.06023221]
[1722428742669,7.41,3321.6,3321.0,0.06023221]
[1722428742924,7.41,3321.6,3321.1,3.01104]
[1722428743402,7.41,3321.6,3321.2,3.07110919]
[1722428744013,7.41,3321.6,3321.4,3.01077]
[1722428744435,7.41,3321.6,3321.5,0.06011328]
[1722428747056,3.01023,3322.0,3321.5,0.06011328]
[1722428747698,13.4302,3322.2,3321.5,3.07079328]
[1722428747899,3.0,3322.1,3321.5,3.07079328]
[1722428748140,3.0,3322.1,3321.5,5.51659328]
[1722428748545,3.0,3322.1,3321.5,2.50591328]
[1722428749135,3.0,3322.1,3321.5,5.51653328]
[1722428749566,3.0,3322.1,3321.6,3.01054]
[1722428750084,3.0,3322.3,3321.7,3.07009693]
[1722428751284,6.00997,3322.3,3321.7,3.07009693]
[1722428751932,3.01005,3322.2,3321.7,0.05960693]
[1722428752133,3.01005,3322.2,3321.5,5.45642]
[1722428752382,6.01015,3322.1,3321.6,0.05960693]
[1722428752638,3.01032,3321.9,3321.6,0.05960693]
[1722428752874,3.01032,3322.0,3321.6,0.05960693]
[1722428753179,3.01039,3321.9,3321.3,3.01085]
[1722428753345,6.01015,3322.1,3321.7,0.05952256]
[1722428753531,6.01015,3322.1,3321.4,3.01077]
[1722428753532,6.01015,3322.1,3321.4,35.0]
[1722428753735,3.01041,3321.8,3321.5,0.05952256]
[1722428754648,3.850215,3322.1,3321.5,0.05952256]
[1722428754649,6.02118,3321.6,3321.5,0.05952256]
[1722428754847,3.01091,3321.3,3320.8,2.4238]
[1722428755057,3.01091,3321.3,3320.9,35.0]
[1722428755245,3.01091,3321.3,3320.9,35.05959159]
[1722428755684,3.01102,3321.2,3320.9,0.05959159]
[1722428756213,3.01102,3321.2,3320.8,35.0]
[1722428756349,3.01077,3321.4,3321.0,0.05959159]
[1722428756350,6.02163,3321.4,3321.0,0.05959159]
[1722428756551,3.01087,3321.3,3320.8,35.0]
[1722428756795,3.01087,3321.3,3320.9,0.05959159]
[1722428758278,3.01047,3321.8,3321.0,3.01113]
[1722428758279,3.01046,3321.8,3321.0,3.01113]
[1722428758465,3.01046,3321.8,3321.1,2.4464]
[1722428758654,3.01046,3321.8,3321.1,40.51698159]
[1722428758857,3.0105,3321.7,3321.1,40.51698159]
[1722428760269,3.01095,3321.2,3321.1,0.05959159]
[1722428760474,3.01079,3321.4,3321.1,0.05959159]
[1722428760795,3.01092,3321.3,3321.2,0.05979488]
[1722428761183,3.01092,3321.3,3320.7,35.2]
[1722428761506,3.011,3321.2,3320.7,35.2]
[1722428761739,3.011,3321.2,3320.8,0.05979104]
[1722428764019,3.01119,3321.0,3320.8,0.05979104]
[1722428764221,3.01123,3320.9,3320.8,0.05979104]
[1722428764424,3.01105,3321.1,3320.8,0.05979104]
[1722428764581,3.01116,3321.0,3320.9,35.0]
[1722428764777,3.01116,3321.0,3320.9,35.05982557]
[1722428765428,3.01116,3321.0,3320.9,0.05982557]
[1722428765776,3.01132,3320.8,3320.1,8.50639]
[1722428765998,3.01132,3320.8,3320.7,35.0]
[1722428766615,3.01132,3320.8,3320.7,35.05982557]
[1722428766778,6.02264,3320.8,3320.7,0.05982557]
[1722428767204,3.01132,3320.8,3320.2,38.01185]
[1722428767679,3.01143,3320.7,3320.3,0.05982557]
[1722428768277,3.01132,3320.8,3320.4,35.0]
[1722428768479,3.01146,3320.7,3320.4,35.0]
[1722428768682,3.01146,3320.7,3320.5,0.05982557]
[1722428769334,3.0109,3321.3,3320.5,0.05982557]
[1722428769335,3.01128,3320.9,3320.5,0.05982557]
[1722428769521,3.01132,3320.8,3320.5,0.05982557]
[1722428771841,3.0115,3320.6,3320.5,0.05982557]
[1722428772039,3.0115,3320.6,3320.1,2.4826]
[1722428772189,3.0115,3320.6,3320.5,35.06011327]
[1722428772514,3.0115,3320.6,3320.5,35.0]
[1722428772722,3.0115,3320.6,3320.5,35.06011327]
[1722428773086,3.01137,3320.8,3320.5,35.06011327]
[1722428773426,6.011,3321.2,3320.5,38.10912615]
[1722428773636,3.0111,3321.1,3320.6,2.4804]
[1722428774049,3.0111,3321.1,3320.7,0.06013629]
[1722428774348,3.01114,3321.0,3320.7,0.06013629]
[1722428775044,3.01114,3321.0,3320.5,3.04901288]
[1722428775252,9.02203,3321.2,3320.8,0.06013629]
[1722428775543,3.01106,3321.1,3320.9,35.0]
[1722428775695,3.01106,3321.1,3321.0,0.06013629]
[1722428776846,3.01106,3321.1,3320.4,3.01162]
[1722428777041,3.01106,3321.1,3320.5,35.0]
[1722428777249,3.01106,3321.1,3320.5,35.06013629]
[1722428777482,3.0,3321.2,3320.5,38.10914917]
[1722428777603,3.0,3321.3,3320.5,38.10914917]
[1722428778039,10.42064,3321.6,3320.6,3.07167674]
[1722428778242,3.01064,3321.6,3320.8,3.01127]
[1722428778556,3.01045,3321.8,3321.2,2.4076]
[1722428778769,3.01057,3321.7,3321.2,2.4076]
[1722428778918,3.01057,3321.7,3321.3,0.06016315]
[1722428779312,3.01066,3321.6,3321.2,2.4076]
[1722428779510,3.01068,3321.5,3321.1,0.2]
[1722428779709,3.01058,3321.7,3321.1,0.2]
[1722428779915,3.0,3321.6,3321.2,0.06016315]
[1722428780999,3.01042,3321.8,3321.2,3.07106315]
[1722428781952,6.0209,3321.8,3321.2,3.07106315]
[1722428782108,3.01042,3321.8,3321.2,3.07106315]
[1722428782443,3.01056,3321.7,3321.2,0.06016315]
[1722428782818,3.01059,3321.6,3321.2,0.06016315]
[1722428783020,3.01059,3321.6,3321.3,35.0]
[1722428783246,3.01073,3321.5,3321.3,35.0]
[1722428783449,3.01073,3321.5,3321.4,0.05985623]
[1722428784252,6.322533,3321.5,3321.4,0.05985623]
[1722428784414,9.333263,3321.5,3321.4,0.05985623]
[1722428784759,6.0219,3321.2,3321.1,0.4]
[1722428785561,11.2792,3321.2,3321.1,0.4]
[1722428785761,12.92898957,3321.2,3321.1,0.4]
[1722428786065,15.93993957,3321.2,3321.1,0.4]
[1722428794743,13.68263957,3321.2,3321.1,0.4]
[1722428795071,9.0219,3321.2,3321.1,0.4]
[1722428795441,9.0219,3321.2,3321.1,0.46028595]
[1722428795739,9.0219,3321.2,3321.1,35.46028595]
[1722428795941,9.0219,3321.2,3321.1,35.4]
[1722428796145,9.0219,3321.2,3321.1,0.46028595]
[1722428796460,9.0219,3321.2,3321.1,0.4]
[1722428796845,10.14481023,3321.2,3321.1,0.4]
[1722428797064,10.14481023,3321.2,3321.1,0.46028595]
[1722428797559,13.15576023,3321.2,3321.1,0.46028595]
[1722428797719,15.36296256,3321.2,3321.1,0.46028595]
[1722428797919,15.36447058,3321.2,3321.1,0.4]
[1722428798123,15.91454491,3321.2,3321.1,0.4]
[1722428799378,11.23068468,3321.2,3321.1,0.4]
[1722428799672,9.0219,3321.2,3321.1,0.4]
[1722428801362,11.23167843,3321.2,3321.1,0.4]
[1722428801657,9.0219,3321.2,3321.1,0.4]
[1722428802020,9.0219,3321.2,3321.1,0.46027827]
[1722428802755,9.0219,3321.2,3321.1,0.4]
[1722428802946,10.44615684,3321.2,3321.1,0.4]
[1722428803528,15.66688527,3321.2,3321.1,0.4]
[1722428803859,15.04063527,3321.2,3321.1,0.4]
[1722428804266,18.05158527,3321.2,3321.1,0.4]
[1722428804571,18.05187875,3321.2,3321.1,0.4]
[1722428804741,15.04092875,3321.2,3321.1,0.4]
[1722428804938,18.05187875,3321.2,3321.1,0.4]
[1722428805550,15.84180684,3321.2,3321.1,0.4]
[1722428808567,19.42355684,3321.2,3321.1,1e-05]
[1722428808771,22.55647718,3321.2,3321.1,1e-05]
[1722428809840,19.42355684,3321.2,3321.1,1e-05]
[1722428810474,16.41260684,3321.2,3321.1,1e-05]
[1722428810677,19.0228579,3321.2,3321.1,1e-05]
[1722428810979,14.00710684,3321.2,3321.1,1e-05]
[1722428811132,16.61736062,3321.2,3321.1,1e-05]
[1722428811327,10.44615684,3321.2,3321.1,1e-05]
[1722428812480,3.01137,3320.8,3320.6,2.2858]
[1722428812946,3.01137,3320.8,3320.7,0.0603934]
[1722428813380,3.01137,3320.8,3320.6,2.2858]
[1722428813381,3.01141,3320.7,3320.6,2.2858]
[1722428813572,5.22083058,3321.1,3320.6,2.51438]
[1722428813936,3.0111,3321.1,3320.6,2.51438]
[1722428814211,3.0,3321.2,3320.6,2.51438]
[1722428814212,3.01114,3321.0,3320.6,2.51438]
[1722428814866,3.01118,3321.0,3320.6,2.51438]
[1722428815518,3.01128,3320.9,3320.6,2.51438]
[1722428817275,3.01106,3321.1,3320.6,2.51438]
[1722428818013,3.01129,3320.9,3320.6,2.51438]
[1722428818572,3.01132,3320.8,3320.6,2.51438]
[1722428818882,3.01141,3320.7,3320.6,2.2858]
[1722428819268,3.01141,3320.7,3320.3,2.4034]
[1722428819702,3.0115,3320.6,3320.3,2.4034]
[1722428820575,3.01107,3321.1,3320.3,2.4034]
[1722428820775,3.01165,3320.5,3320.3,2.4034]
[1722428821203,3.01165,3320.5,3320.4,0.06036652]
[1722428822281,6.0233,3320.5,3320.4,0.06036652]
[1722428822594,3.01189,3320.2,3320.0,2.3169]
[1722428822776,3.01189,3320.2,3319.6,3.01241]
[1722428822777,3.01189,3320.2,3319.7,2.3436]
[1722428823475,3.01198,3320.1,3319.7,2.3436]
[1722428824107,3.01189,3320.2,3319.7,2.3436]
[1722428824108,3.01206,3320.0,3319.7,2.3436]
[1722428824642,3.01189,3320.2,3319.7,2.3436]
[1722428824859,3.01189,3320.2,3319.7,2.94090552]
[1722428825052,3.01189,3320.2,3320.1,0.2]
[1722428825607,3.01172,3320.4,3320.1,0.2]
[1722428825805,9.62001092,3320.8,3320.2,2.4727]
[1722428825806,12.63137092,3320.8,3320.2,2.4727]
[1722428826006,3.0,3320.7,3320.2,5.48449]